bitfinex-derivatives/quotes_BTCF0:USTF0_20250417
["timestamp","ask_amount","ask_price","bid_price","bid_amount"]
[1744880057453,0.1183002,84529.0,84528.0,0.02]
[1744880057643,0.1183016,84528.0,84527.0,0.1383025]
[1744880057945,0.2883016,84528.0,84527.0,0.1183025]
[1744880058147,0.3513016,84528.0,84527.0,0.1183025]
[1744880058846,0.505,84528.0,84522.0,0.00028554]
[1744880059049,0.177495,84510.0,84509.0,0.0591624]
[1744880059344,0.357495,84510.0,84509.0,0.0910624]
[1744880059540,0.357495,84510.0,84509.0,0.1230624]
[1744880059846,0.422295,84510.0,84509.0,0.1230624]
[1744880060647,0.4814595,84510.0,84509.0,0.1230624]
[1744880060944,0.118331,84507.0,84506.0,0.0316]
[1744880061136,0.288331,84507.0,84506.0,0.031]
[1744880061638,0.288331,84507.0,84506.0,0.03108]
[1744880061844,0.321131,84507.0,84506.0,0.03108]
[1744880062232,0.321131,84507.0,84506.0,0.03208]
[1744880062845,0.321131,84507.0,84506.0,0.1504124]
[1744880063443,0.321131,84507.0,84506.0,0.1544124]
[1744880065337,0.321131,84507.0,84506.0,0.00508]
[1744880065542,0.321131,84507.0,84506.0,0.1234124]
[1744880066154,0.321131,84507.0,84506.0,0.1534124]
[1744880067257,0.321131,84507.0,84506.0,0.14453135]
[1744880069051,0.2028,84507.0,84506.0,0.14453135]
[1744880069357,0.321131,84507.0,84506.0,0.14453135]
[1744880070046,0.321131,84507.0,84506.0,0.13343027]
[1744880079261,0.1183324,84506.0,84505.0,0.1489338]
[1744880079452,0.3493324,84506.0,84505.0,0.1489338]
[1744880079657,0.3813324,84506.0,84505.0,0.1490138]
[1744880080560,0.3813324,84506.0,84505.0,0.1823138]
[1744880080760,0.3823324,84506.0,84505.0,0.1863138]
[1744880086470,0.3823324,84506.0,84505.0,0.17743287]
[1744880091071,0.7431324,84506.0,84505.0,0.17743287]
[1744880096474,0.7431324,84506.0,84505.0,0.1557138]
[1744880096873,0.7431324,84506.0,84505.0,0.14683291]
[1744880098475,0.7431324,84506.0,84505.0,0.18003291]
[1744880102979,0.3823324,84506.0,84505.0,0.18003291]
[1744880103172,0.7431324,84506.0,84505.0,0.18003291]
[1744880104279,0.7431324,84506.0,84505.0,0.07058]
[1744880104966,0.7431324,84506.0,84505.0,0.1889138]
[1744880106083,0.7431324,84506.0,84505.0,0.00508]
[1744880106272,0.7431324,84506.0,84505.0,0.1234138]
[1744880107284,0.7431324,84506.0,84505.0,0.11453298]
[1744880118491,0.1183338,84505.0,84504.0,0.1183352]
[1744880118792,0.3183338,84505.0,84504.0,0.1183352]
[1744880118990,0.3831338,84505.0,84504.0,0.1183352]
[1744880119892,0.3841338,84505.0,84504.0,0.1213352]
[1744880120193,0.3841338,84505.0,84504.0,0.1233352]
[1744880120391,0.3841338,84505.0,84486.0,0.0947]
[1744880120392,0.1183464,84496.0,84486.0,0.0947]
[1744880120591,0.6591464,84496.0,84490.0,0.1183543]
[1744880120986,0.1183534,84491.0,84490.0,0.1183543]
[1744880121186,0.0591778,84490.0,84485.0,0.03708963]
[1744880121392,0.1183604,84487.0,84486.0,0.1183593]
[1744880121594,0.3083604,84487.0,84486.0,0.1183593]
[1744880121794,0.3728604,84487.0,84486.0,0.1183593]
[1744880122496,0.3728604,84487.0,84486.0,0.1193593]
[1744880122993,0.2545,84487.0,84486.0,0.1193593]
[1744880123195,0.2545,84487.0,84486.0,0.1815593]
[1744880125197,0.372859,84487.0,84486.0,0.1815593]
[1744880127991,0.372859,84487.0,84486.0,0.1193593]
[1744880128191,0.372859,84487.0,84486.0,0.001]
[1744880128699,0.372859,84487.0,84486.0,0.00108]
[1744880128893,0.372859,84487.0,84486.0,0.1194404]
[1744880129607,0.372859,84487.0,84486.0,0.00108]
[1744880129998,0.372859,84487.0,84486.0,0.001]
[1744880130306,0.38470507,84487.0,84486.0,0.00108]
[1744880131002,0.38470507,84487.0,84486.0,0.001]
[1744880131207,0.38470507,84487.0,84486.0,0.00108]
[1744880132700,0.0591827,84483.0,84465.0,0.0591948]
[1744880133002,0.1183828,84470.0,84469.0,0.00421338]
[1744880133298,0.3183828,84470.0,84469.0,0.00421338]
[1744880133708,0.1183884,84466.0,84465.0,0.000108]
[1744880133900,0.6691884,84466.0,84465.0,0.000108]
[1744880134498,0.1183926,84463.0,84462.0,0.0313]
[1744880134697,0.1483926,84463.0,84462.0,0.0313]
[1744880135099,0.1483926,84463.0,84462.0,0.149694]
[1744880135297,0.1798926,84463.0,84462.0,0.118394]
[1744880135696,0.1808926,84463.0,84462.0,0.123394]
[1744880136703,0.1808926,84463.0,84462.0,0.154494]
[1744880137206,0.1808926,84463.0,84462.0,0.157494]
[1744880137599,0.2114926,84463.0,84462.0,0.157494]
[1744880138196,0.2114926,84463.0,84462.0,0.126394]
[1744880138898,0.2114926,84463.0,84462.0,0.008]
[1744880139497,0.2114926,84463.0,84462.0,0.126394]
[1744880140417,0.2114926,84463.0,84462.0,0.008]
[1744880141109,0.2114926,84463.0,84462.0,0.126394]
[1744880141306,0.2114926,84463.0,84462.0,0.126474]
[1744880141604,0.5722926,84463.0,84462.0,0.126474]
[1744880143304,0.2114926,84463.0,84462.0,0.126474]
[1744880143509,0.5722926,84463.0,84462.0,0.126474]
[1744880145700,0.4233,84463.0,84462.0,0.126474]
[1744880145906,0.4233,84463.0,84462.0,0.190574]
[1744880146510,0.5416926,84463.0,84462.0,0.190574]
[1744880146899,0.4233,84463.0,84462.0,0.190574]
[1744880147505,0.5416926,84463.0,84462.0,0.190574]
[1744880148508,0.4233,84463.0,84462.0,0.190574]
[1744880150014,0.5416926,84463.0,84462.0,0.190574]
[1744880152414,0.5316926,84463.0,84462.0,0.190574]
[1744880153118,0.4133,84463.0,84462.0,0.190574]
[1744880156019,0.0525,84463.0,84462.0,0.190574]
[1744880159416,0.0625,84463.0,84462.0,0.190574]
[1744880159814,0.021,84463.0,84462.0,0.190574]
[1744880160008,0.0331,84470.0,84469.0,0.1183842]
[1744880160215,0.0531,84470.0,84469.0,0.1183842]
[1744880160615,0.0531,84470.0,84469.0,0.1815842]
[1744880161108,0.0531,84470.0,84469.0,0.1835842]
[1744880161308,0.0541,84470.0,84469.0,0.1865842]
[1744880170931,0.0541,84470.0,84469.0,0.1233842]
[1744880173320,0.1724828,84470.0,84469.0,0.1233842]
[1744880173722,0.4149,84470.0,84465.0,0.02]
[1744880174025,0.1183898,84465.0,84464.0,0.1183907]
[1744880174224,0.2783898,84465.0,84464.0,0.1183907]
[1744880174623,0.3415898,84465.0,84464.0,0.1183907]
[1744880175726,0.3415898,84465.0,84464.0,0.1203907]
[1744880176718,0.3415898,84465.0,84464.0,0.1213907]
[1744880179434,0.3415898,84465.0,84464.0,0.11250498]
[1744880185939,0.2232,84465.0,84464.0,0.11250498]
[1744880186333,0.1906,84465.0,84464.0,0.11250498]
[1744880186538,0.1906,84465.0,84464.0,0.17550498]
[1744880186739,0.0306,84465.0,84464.0,0.17550498]
[1744880188434,0.3608,84470.0,84469.0,0.1183842]
[1744880189235,0.3608,84470.0,84469.0,0.1494842]
[1744880189738,0.3608,84470.0,84469.0,0.1795842]
[1744880190035,0.00017754,84478.0,84469.0,0.0612]
[1744880190242,0.033,84480.0,84479.0,0.1183702]
[1744880190942,0.033,84480.0,84479.0,0.1796702]
[1744880191442,0.00017754,84488.0,84487.0,0.118359]
[1744880191831,0.00017754,84488.0,84487.0,1.618359]
[1744880192028,0.00017754,84488.0,84487.0,1.649559]
[1744880192235,0.3608,84490.0,84489.0,0.1183562]
[1744880192931,0.3608,84490.0,84489.0,0.1798562]
[1744880193843,0.3608,84490.0,84489.0,1.6798562]
[1744880194445,0.3628,84490.0,84489.0,1.69144935]
[1744880194636,0.3668,84490.0,84489.0,1.69144935]
[1744880195244,0.0307,84496.0,84495.0,0.1183478]
[1744880195929,0.0307,84496.0,84495.0,0.1789478]
[1744880197145,0.0357,84496.0,84495.0,0.1799478]
[1744880197646,0.0387,84496.0,84495.0,0.1799478]
[1744880198144,0.0332,84506.0,84502.0,0.118338]
[1744880198347,0.0906,84503.0,84502.0,0.118338]
[1744880198545,0.0628,84512.0,84511.0,0.1183254]
[1744880198847,0.2328,84512.0,84511.0,0.1183254]
[1744880200737,0.351124,84512.0,84511.0,0.1183254]
[1744880200939,0.351124,84512.0,84511.0,0.1184054]
[1744880201344,0.360124,84512.0,84511.0,0.1194054]
[1744880201540,0.360124,84512.0,84511.0,0.1193254]
[1744880201741,0.360124,84512.0,84511.0,0.1194054]
[1744880201941,0.365124,84512.0,84511.0,0.1194054]
[1744880202840,0.745924,84512.0,84511.0,0.00108]
[1744880203039,0.745924,84512.0,84511.0,0.1193254]
[1744880203748,0.745924,84512.0,84511.0,0.1194054]
[1744880206251,0.745924,84512.0,84511.0,0.00108]
[1744880209866,0.745924,84512.0,84511.0,0.001]
[1744880210161,0.745924,84512.0,84511.0,0.00108]
[1744880211855,0.745924,84512.0,84511.0,0.1194054]
[1744880213458,0.745924,84512.0,84511.0,0.00108]
[1744880213659,0.745924,84512.0,84511.0,0.1194054]
[1744880216057,0.89742435,84512.0,84511.0,0.1194054]
[1744880224464,0.86702435,84512.0,84511.0,0.1194054]
[1744880224654,0.79218435,84512.0,84511.0,0.1194054]
[1744880224854,0.75978435,84512.0,84511.0,0.1194054]
[1744880225054,0.75978435,84512.0,84511.0,0.1828054]
[1744880225452,0.683124,84512.0,84511.0,0.1828054]
[1744880226166,0.5648,84512.0,84511.0,0.1828054]
[1744880226352,0.673124,84512.0,84511.0,0.1828054]
[1744880226664,0.869724,84512.0,84511.0,0.00108]
[1744880226858,0.869724,84512.0,84474.0,0.4176]
[1744880226859,0.1183352,84504.0,84500.0,0.1183397]
[1744880227165,0.6891352,84504.0,84500.0,0.138448]
[1744880227552,0.6891352,84504.0,84501.0,0.1183392]
[1744880227756,0.7519352,84504.0,84500.0,0.1384481]
[1744880227956,0.7519352,84504.0,84501.0,0.1488392]
[1744880228170,0.7559352,84504.0,84501.0,0.1488392]
[1744880229067,0.7629352,84504.0,84503.0,0.00117754]
[1744880230471,0.7629352,84504.0,84503.0,0.03167754]
[1744880231958,0.7629352,84504.0,84503.0,0.00117754]
[1744880236470,0.7589352,84504.0,84503.0,0.00117754]
[1744880236672,0.7629352,84504.0,84503.0,0.00117754]
[1744880237168,0.9595352,84504.0,84503.0,0.00117754]
[1744880237371,0.7629352,84504.0,84503.0,0.00117754]
[1744880237981,0.7629352,84504.0,84503.0,0.11951414]
[1744880238473,0.8373752,84504.0,84503.0,0.11951414]
[1744880238872,0.8373752,84504.0,84503.0,0.15031414]
[1744880239075,0.8303752,84504.0,84503.0,0.14931414]
[1744880239276,0.8373752,84504.0,84503.0,0.15031414]
[1744880239475,0.8333752,84504.0,84503.0,0.15031414]
[1744880239669,0.91367598,84504.0,84503.0,0.15031414]
[1744880242072,0.91367598,84504.0,84503.0,0.00117754]
[1744880242379,0.1183464,84496.0,84495.0,0.1491472]
[1744880242571,0.2983464,84496.0,84495.0,0.1491472]
[1744880242875,0.6467464,84496.0,84495.0,0.1491472]
[1744880243869,0.6507464,84496.0,84495.0,0.1501472]
[1744880244268,0.6537464,84496.0,84495.0,0.1501472]
[1744880245576,0.6547464,84496.0,84495.0,0.1501472]
[1744880245774,0.6517464,84496.0,84495.0,0.1501472]
[1744880245974,0.6547464,84496.0,84495.0,0.1501472]
[1744880246372,0.6497464,84496.0,84495.0,0.1491472]
[1744880246573,0.6517464,84496.0,84495.0,0.1501472]
[1744880246773,0.6547464,84496.0,84495.0,0.1501472]
[1744880247482,0.6497464,84496.0,84495.0,0.1491472]
[1744880247686,0.6547464,84496.0,84495.0,0.1501472]
[1744880248285,0.4047464,84496.0,84495.0,0.1501472]
[1744880249288,0.4037464,84496.0,84495.0,0.1501472]
[1744880249489,0.4107464,84496.0,84495.0,0.1501472]
[1744880249786,0.4097464,84496.0,84495.0,0.1491472]
[1744880249987,0.4147464,84496.0,84495.0,0.1501472]
[1744880250384,0.2557756,84493.0,84487.0,0.11853594]
[1744880250590,0.1183576,84488.0,84487.0,0.00017754]
[1744880250889,0.3183576,84488.0,84487.0,0.03317754]
[1744880251475,0.3830576,84488.0,84487.0,0.15153654]
[1744880253298,0.3880576,84488.0,84487.0,0.15253654]
[1744880253594,0.1910576,84488.0,84487.0,0.15253654]
[1744880253791,0.1910576,84488.0,84487.0,0.03417754]
[1744880254698,0.1910576,84488.0,84487.0,0.15253654]
[1744880255687,0.1593576,84488.0,84487.0,0.15253654]
[1744880256597,0.1583576,84488.0,84487.0,0.15253654]
[1744880256794,0.1573576,84488.0,84487.0,0.15253654]
[1744880257398,0.1573576,84488.0,84487.0,0.03417754]
[1744880258085,0.1573576,84488.0,84487.0,0.15261654]
[1744880262499,0.1243576,84488.0,84487.0,0.15261654]
[1744880271099,0.006,84488.0,84487.0,0.15261654]
[1744880271294,0.006,84488.0,84487.0,0.51341654]
[1744880283015,0.0327,84501.0,84498.0,0.1183436]
[1744880283220,0.0333,84501.0,84498.0,0.1183436]
[1744880283610,0.0333,84501.0,84498.0,0.1824436]
[1744880284109,0.00417754,84499.0,84498.0,0.1824436]
[1744880284811,0.04417754,84499.0,84498.0,0.1824436]
[1744880285513,0.05117754,84499.0,84498.0,0.1834436]
[1744880286827,0.04817754,84499.0,84498.0,0.1824436]
[1744880287010,0.07877754,84499.0,84498.0,0.1824436]
[1744880287217,0.10897754,84499.0,84498.0,0.1824436]
[1744880291718,0.10897754,84499.0,84498.0,0.1497436]
[1744880303735,0.10897754,84499.0,84498.0,0.14086192]
[1744880307431,0.10897754,84499.0,84498.0,0.17396192]
[1744880308434,0.10897754,84499.0,84498.0,0.14086192]
[1744880313147,0.22731974,84499.0,84498.0,0.14086192]
[1744880313942,0.10897754,84499.0,84498.0,0.14086192]
[1744880324350,0.10897754,84499.0,84498.0,0.20356192]
[1744880337453,0.10897754,84499.0,84498.0,0.56436192]
[1744880337760,0.07877754,84499.0,84498.0,0.55548092]
[1744880343466,0.11077754,84499.0,84498.0,0.55548092]
[1744880344875,0.11077754,84499.0,84498.0,0.57548092]
[1744880346074,0.11077754,84499.0,84498.0,0.21468092]
[1744880346273,0.11077754,84499.0,84498.0,0.57548092]
[1744880347871,0.11077754,84499.0,84498.0,0.21468092]
[1744880348180,0.11077754,84499.0,84498.0,0.57548092]
[1744880350376,0.11077754,84499.0,84498.0,0.51278092]
[1744880352276,0.14347754,84499.0,84498.0,0.51278092]
[1744880356896,0.14347754,84499.0,84498.0,0.54478092]
[1744880358300,0.11347754,84499.0,84498.0,0.55478092]
[1744880360796,0.11347754,84499.0,84498.0,0.19398092]
[1744880360997,0.23077754,84499.0,84498.0,0.55478092]
[1744880365798,0.23077754,84499.0,84498.0,0.54589998]
[1744880366305,0.19877754,84499.0,84498.0,0.54589998]
[1744880367804,0.18877754,84499.0,84498.0,0.54589998]
[1744880369410,0.03877754,84499.0,84498.0,0.52589998]
[1744880370904,0.03877754,84499.0,84498.0,0.51589998]
[1744880373905,0.00717754,84499.0,84498.0,0.51589998]
[1744880374907,0.00717754,84499.0,84498.0,0.52589998]
[1744880376221,0.03987754,84499.0,84498.0,0.52589998]
[1744880376419,0.20987754,84499.0,84498.0,0.49397998]
[1744880377111,0.03987754,84499.0,84498.0,0.49397998]
[1744880379005,0.03987754,84499.0,84498.0,0.52647998]
[1744880381410,0.03987754,84499.0,84498.0,0.51647998]
[1744880381821,0.03987754,84499.0,84498.0,0.52647998]
[1744880382621,0.03987754,84499.0,84498.0,0.51647998]
[1744880383713,0.03987754,84499.0,84498.0,0.52647998]
[1744880384322,0.03987754,84499.0,84498.0,0.51647998]
[1744880384619,0.03987754,84499.0,84498.0,0.52647998]
[1744880388423,0.03987754,84499.0,84498.0,0.49397998]
[1744880389022,0.03987754,84499.0,84498.0,0.48397998]
[1744880389424,0.04987754,84499.0,84498.0,0.48397998]
[1744880399439,0.04987754,84499.0,84498.0,0.48297998]
[1744880399938,0.04987754,84499.0,84498.0,0.12217998]
[1744880400138,0.04987754,84499.0,84498.0,0.48297998]
[1744880401132,0.03987754,84499.0,84498.0,0.48297998]
[1744880401333,0.03987754,84499.0,84498.0,0.49297998]
[1744880402436,0.03987754,84499.0,84498.0,0.52337998]
[1744880404239,0.23954793,84512.0,84500.0,0.05917]
[1744880404436,0.0323,84502.0,84501.0,0.1183394]
[1744880404641,0.0323,84502.0,84496.0,0.000108]
[1744880404642,0.1966,84500.0,84496.0,0.000108]
[1744880404848,0.1183658,84484.0,84483.0,0.1183621]
[1744880405052,0.5508,84484.0,84483.0,0.1183621]
[1744880405240,0.0058502,84485.0,84484.0,0.1183632]
[1744880405643,0.0058502,84485.0,84484.0,0.1831632]
[1744880405838,0.0058502,84485.0,84484.0,0.1503632]
[1744880406238,0.0058502,84485.0,84484.0,0.1504432]
[1744880407152,0.0058502,84485.0,84484.0,0.1821432]
[1744880407841,0.0058502,84485.0,84484.0,0.1851432]
[1744880408244,0.0058502,84485.0,84484.0,0.1861432]
[1744880411260,0.0307,84490.0,84489.0,0.1183562]
[1744880411449,0.0613,84490.0,84489.0,0.1183562]
[1744880412147,0.0613,84490.0,84489.0,0.1511562]
[1744880412351,0.0307,84490.0,84489.0,0.1817562]
[1744880412561,0.00017754,84493.0,84492.0,0.118352]
[1744880412752,4e-08,84493.0,84492.0,0.118352]
[1744880413152,4e-08,84493.0,84492.0,0.509552]
[1744880413346,4e-08,84493.0,84492.0,0.519552]
[1744880414058,0.0302,84509.0,84508.0,0.1183296]
[1744880414253,0.1002,84509.0,84508.0,0.1183296]
[1744880415346,0.1002,84509.0,84508.0,0.1193296]
[1744880415347,0.1102,84509.0,84508.0,0.1193296]
[1744880415551,0.1102,84509.0,84508.0,0.1821296]
[1744880415951,0.1102,84509.0,84508.0,0.1517296]
[1744880417162,0.1102,84509.0,84508.0,0.1193296]
[1744880420054,0.1425,84509.0,84508.0,0.1193296]
[1744880421853,0.1425,84509.0,84508.0,0.1507296]
[1744880422255,0.08,84509.0,84508.0,0.1507296]
[1744880422460,0.08,84509.0,84508.0,0.1818296]
[1744880422854,0.1431,84509.0,84508.0,0.1818296]
[1744880424561,0.08,84509.0,84508.0,0.1818296]
[1744880424954,0.1108,84509.0,84508.0,0.1507296]
[1744880425154,0.175,84509.0,84508.0,0.1507296]
[1744880425552,0.175,84509.0,84508.0,0.1508096]
[1744880432868,0.08,84509.0,84508.0,0.1508096]
[1744880439571,0.005,84514.0,84513.0,0.1183344]
[1744880440472,0.005,84514.0,84513.0,0.2128344]
[1744880441369,0.011,84514.0,84513.0,0.2138344]
[1744880441572,0.015,84514.0,84513.0,0.2138344]
[1744880441876,0.00017754,84517.0,84516.0,0.1183302]
[1744880442166,0.01017754,84517.0,84516.0,0.1183302]
[1744880442762,0.01017754,84517.0,84516.0,0.1501302]
[1744880442960,0.0638,84529.0,84528.0,0.1183134]
[1744880443162,0.2238,84529.0,84528.0,0.1183134]
[1744880443566,0.19969957,84529.0,84528.0,0.1183134]
[1744880443775,0.16,84529.0,84528.0,0.1484134]
[1744880443967,0.16,84529.0,84528.0,0.1816134]
[1744880445172,0.162,84529.0,84528.0,0.1816134]
[1744880450080,0.00017754,84537.0,84536.0,0.118314]
[1744880450378,0.08194194,84537.0,84536.0,0.118314]
[1744880450673,0.07317754,84537.0,84536.0,0.118314]
[1744880451480,0.10867754,84537.0,84536.0,0.150814]
[1744880452981,0.12747155,84537.0,84531.0,0.020108]
[1744880453180,0.12747155,84537.0,84536.0,0.118314]
[1744880453376,0.48827155,84537.0,84536.0,0.118314]
[1744880454475,0.48427155,84537.0,84536.0,0.118314]
[1744880454673,0.48827155,84537.0,84536.0,0.118314]
[1744880460581,0.1183196,84532.0,84531.0,0.020108]
[1744880460783,0.1183267,84530.0,84529.0,0.1183239]
[1744880461085,0.5408,84530.0,84529.0,0.1775651]
[1744880461380,0.6035,84530.0,84529.0,0.1775651]
[1744880461782,0.7218343,84530.0,84529.0,0.1775651]
[1744880461976,0.6035,84530.0,84529.0,0.1775651]
[1744880462982,0.6055,84530.0,84529.0,0.1775651]
[1744880465487,0.6055,84530.0,84529.0,0.16868499]
[1744880466189,0.7238343,84530.0,84529.0,0.16868499]
[1744880466391,0.6055,84530.0,84520.0,0.05935094]
[1744880466695,0.6055,84530.0,84520.0,0.07935094]
[1744880466696,0.4791469,84521.0,84520.0,0.07935094]
[1744880466894,0.0591771,84516.0,84507.0,0.059183]
[1744880467082,0.1775468,84510.0,84509.0,0.1776851]
[1744880467281,0.7483468,84510.0,84509.0,0.0593275]
[1744880467592,0.7483468,84510.0,84509.0,0.0592617]
[1744880468480,0.7483468,84510.0,84509.0,0.0591817]
[1744880468781,0.7483468,84510.0,84509.0,0.0602617]
[1744880468982,0.0591848,84505.0,84501.0,0.00032334]
[1744880469185,0.4791735,84502.0,84501.0,0.00032334]
[1744880469387,0.9391735,84502.0,84501.0,0.00017754]
[1744880469589,0.9391735,84502.0,84501.0,0.11855244]
[1744880469890,0.9391735,84502.0,84501.0,0.11863244]
[1744880470088,0.9391735,84502.0,84501.0,0.10752826]
[1744880470590,0.1183777,84499.0,84498.0,0.0791891]
[1744880470789,0.9291777,84499.0,84498.0,0.0591891]
[1744880471386,0.8108,84499.0,84498.0,0.1775668]
[1744880471588,0.8742,84499.0,84498.0,0.1775668]
[1744880471788,0.8752,84499.0,84498.0,0.1775668]
[1744880472186,1.236,84499.0,84498.0,0.1775668]
[1744880472694,1.239,84499.0,84498.0,0.1775668]
[1744880473693,1.238,84499.0,84498.0,0.1775668]
[1744880473898,1.24,84499.0,84498.0,0.2080668]
[1744880474393,1.31985433,84499.0,84498.0,0.2080668]
[1744880476793,1.43823203,84499.0,84498.0,0.0896891]
[1744880477297,1.43823203,84499.0,84498.0,0.08080491]
[1744880477599,1.3583777,84499.0,84498.0,0.08080491]
[1744880477900,0.1183819,84496.0,84495.0,0.020108]
[1744880478101,0.1183861,84495.0,84494.0,0.1183842]
[1744880478401,0.7227783,84495.0,84494.0,0.1183842]
[1744880478705,0.7227783,84495.0,84494.0,0.1184642]
[1744880480093,0.7237783,84495.0,84494.0,0.1184642]
[1744880480293,0.7247783,84495.0,84494.0,0.1184642]
[1744880481811,1.4463783,84495.0,84494.0,0.1184642]
[1744880489414,1.4148783,84495.0,84494.0,0.1184642]
[1744880490004,1.4148783,84495.0,84494.0,8e-05]
[1744880490401,0.0591923,84494.0,84486.0,0.0591977]
[1744880490602,0.0591951,84491.0,84490.0,0.1504889]
[1744880490797,0.4691951,84491.0,84490.0,0.1806889]
[1744880494808,0.4691951,84491.0,84490.0,0.17180427]
[1744880495414,0.47794402,84491.0,84490.0,0.17180427]
[1744880497419,0.48194402,84491.0,84490.0,0.17180427]
[1744880498218,0.48394402,84491.0,84490.0,0.17180427]
[1744880504827,0.48394402,84491.0,84490.0,0.16291964]
[1744880506224,0.416,84491.0,84490.0,0.16291964]
[1744880506426,0.5343889,84491.0,84490.0,0.16291964]
[1744880506617,0.416,84491.0,84490.0,0.16291964]
[1744880506926,0.5343889,84491.0,84490.0,0.16291964]
[1744880507511,0.5303889,84491.0,84490.0,0.16291964]
[1744880507712,0.5333889,84491.0,84490.0,0.16291964]
[1744880508723,0.415,84491.0,84490.0,0.16291964]
[1744880509030,0.175,84491.0,84490.0,0.17291964]
[1744880509633,0.175,84491.0,84490.0,0.16291964]
[1744880510330,0.18,84491.0,84490.0,0.16291964]
[1744880510629,0.185,84491.0,84490.0,0.16291964]
[1744880510925,0.182,84491.0,84490.0,0.16291964]
[1744880511117,0.3013889,84491.0,84490.0,0.16291964]
[1744880511322,0.2176,84491.0,84490.0,0.16291964]
[1744880512030,0.3359889,84491.0,84490.0,0.16291964]
[1744880513227,0.3359889,84491.0,84490.0,0.16299964]
[1744880516723,0.3359889,84491.0,84490.0,0.15411446]
[1744880516930,0.3359889,84491.0,84490.0,0.1486689]
[1744880517129,0.3359889,84491.0,84490.0,0.1184689]
[1744880517426,0.3359889,84491.0,84490.0,0.1183889]
[1744880517633,0.3359889,84491.0,84487.0,0.0691972]
[1744880517634,0.1183917,84489.0,84488.0,0.1183922]
[1744880517831,0.1184043,84480.0,84472.0,0.0592077]
[1744880518031,0.0592109,84476.0,84473.0,0.0325]
[1744880518222,0.0333,84475.0,84474.0,0.1184246]
[1744880518427,0.4847,84475.0,84474.0,0.1184246]
[1744880518627,0.4847,84475.0,84474.0,0.1185046]
[1744880520437,0.4867,84475.0,84474.0,0.1185046]
[1744880520637,0.4867,84475.0,84474.0,0.1513046]
[1744880521225,0.4887,84475.0,84474.0,0.1185046]
[1744880521426,0.118456,84460.0,84459.0,1e-08]
[1744880521725,1.1716,84460.0,84459.0,0.1184574]
[1744880522140,1.1716,84460.0,84459.0,0.1185374]
[1744880522338,0.0592308,84456.0,84452.0,1e-08]
[1744880522529,0.0592372,84447.0,84441.0,0.149881]
[1744880522841,0.0622,84446.0,84445.0,0.1184771]
[1744880523039,0.9078,84446.0,84445.0,0.1184771]
[1744880523231,0.9078,84446.0,84445.0,0.1185571]
[1744880523428,0.9078,84446.0,84445.0,0.1184771]
[1744880523637,0.9078,84446.0,84445.0,0.1185571]
[1744880525740,0.9078,84446.0,84445.0,0.1184771]
[1744880526039,0.9078,84446.0,84445.0,0.1185571]
[1744880526645,1.0262638,84446.0,84445.0,0.1185571]
[1744880527445,0.9078,84446.0,84445.0,0.1185571]
[1744880527646,0.91655787,84446.0,84445.0,0.1185571]
[1744880528648,1.03502167,84446.0,84445.0,0.1185571]
[1744880532947,0.91655787,84446.0,84445.0,0.1185571]
[1744880533146,1.03502167,84446.0,84445.0,0.1185571]
[1744880534051,0.9078,84446.0,84445.0,0.1185571]
[1744880534366,0.9078,84446.0,84445.0,0.1485571]
[1744880534853,0.801,84446.0,84445.0,0.1485571]
[1744880535147,0.801,84446.0,84445.0,0.1837571]
[1744880535357,0.00017754,84468.0,84445.0,0.67608]
[1744880535542,0.0316,84459.0,84458.0,0.118447]
[1744880535743,0.4816,84459.0,84458.0,0.128447]
[1744880535939,0.00017754,84468.0,84467.0,0.1184344]
[1744880536149,0.41017754,84468.0,84467.0,0.1184344]
[1744880536852,0.41017754,84468.0,84467.0,0.1759344]
[1744880537453,0.41317754,84468.0,84467.0,0.1759344]
[1744880538558,0.41517754,84468.0,84467.0,0.1759344]
[1744880539045,0.41317754,84468.0,84467.0,0.1759344]
[1744880539251,0.41517754,84468.0,84467.0,0.1759344]
[1744880539657,0.41217754,84468.0,84467.0,0.1759344]
[1744880539952,0.41517754,84468.0,84467.0,0.1759344]
[1744880540649,0.53361054,84468.0,84467.0,0.1759344]
[1744880540849,0.56641054,84468.0,84467.0,0.1507344]
[1744880541050,0.59871054,84468.0,84467.0,0.1508144]
[1744880542959,0.59871054,84468.0,84467.0,0.1507344]
[1744880543158,0.59871054,84468.0,84467.0,0.1508144]
[1744880544859,0.59871054,84468.0,84467.0,0.1507344]
[1744880545160,0.59871054,84468.0,84467.0,0.1508144]
[1744880545853,0.59871054,84468.0,84467.0,0.14192746]
[1744880547755,0.95951054,84468.0,84467.0,0.14192746]
[1744880548160,0.84107754,84468.0,84467.0,0.14192746]
[1744880560375,0.80877754,84468.0,84467.0,0.14192746]
[1744880562476,0.3608,84483.0,84477.0,0.0592098]
[1744880562676,0.0306,84482.0,84481.0,0.1184147]
[1744880562976,0.4806,84482.0,84481.0,0.1184147]
[1744880563277,0.4806,84482.0,84481.0,0.1504147]
[1744880563981,0.4806,84482.0,84481.0,0.1625838]
[1744880564473,0.4876,84482.0,84481.0,0.1635838]
[1744880564773,0.4926,84482.0,84481.0,0.1635838]
[1744880565077,0.462,84482.0,84481.0,0.1735838]
[1744880565273,0.2983636,84482.0,84481.0,0.1735838]
[1744880565474,0.005,84488.0,84487.0,0.1184171]
[1744880565682,0.075,84488.0,84487.0,0.1284171]
[1744880565983,0.075,84488.0,84487.0,0.11953298]
[1744880566377,0.085,84488.0,84487.0,0.11953298]
[1744880566575,0.085,84488.0,84487.0,0.11453298]
[1744880567172,0.09,84488.0,84487.0,0.11453298]
[1744880567368,0.092,84488.0,84487.0,0.11453298]
[1744880572674,0.4528,84488.0,84487.0,0.11453298]
[1744880573384,0.4833,84488.0,84487.0,0.11453298]
[1744880574585,0.1225,84488.0,84487.0,0.11453298]
[1744880574786,0.4833,84488.0,84487.0,0.11453298]
[1744880576288,0.4833,84488.0,84487.0,0.10564848]
[1744880578292,0.4833,84488.0,84487.0,0.13604848]
[1744880578595,0.4833,84488.0,84487.0,0.12604848]
[1744880580682,0.4833,84488.0,84483.0,0.02]
[1744880580683,0.1184224,84484.0,84483.0,0.02]
[1744880580885,0.118428,84480.0,84479.0,0.02028554]
[1744880581093,0.568428,84480.0,84479.0,0.11871484]
[1744880582190,0.568428,84480.0,84479.0,0.00028554]
[1744880582489,0.568428,84480.0,84479.0,0.00017754]
[1744880582691,0.569428,84480.0,84479.0,0.00025754]
[1744880582882,0.569428,84480.0,84479.0,0.00017754]
[1744880583077,0.569428,84480.0,84479.0,0.11868694]
[1744880583894,0.570428,84480.0,84479.0,0.00017754]
[1744880584190,0.570428,84480.0,84479.0,0.00025754]